Cogmind - Beta 9.2 *** ADVENTURER MODE // 2019.11.17 @ 19:11:46 Player: Rian Result: Destroyed by L-31 Rogue with Katana Performance ------------- Evolutions (1) 500 Regions Visited (2) 400 Robots Destroyed (57) 285 Value Destroyed (1325) 1325 Prototype IDs (2) 40 Alien Tech Used (0) 0 Bonus (10) 10 TOTAL SCORE: 2560 Bonus ------- High Alert Combat Kills 10 Cogmind --------- Core Integrity 0/400 Matter 215/300 Energy 125/125 System Corruption 0% Temperature Cool (42) Movement Rolling (110) Ox1 Location -9/Materials Parts ------- > --- POWER (1) -------- Light Ion Engine > --- PROPULSION (2) --- Compact Wheel Compact Wheel > --- UTILITY (3) ------ Large Storage Unit Improved Propulsion Shielding Medium Armor Plating > --- WEAPON (3) ------- High-powered Shotgun High-powered Shotgun > --- INVENTORY (10) --- Improved Heat Sink Melee Analysis Suite EM Shotgun EM Shotgun Peak State ------------ > --- POWER ------------ Light Ion Engine > --- PROPULSION ------- Compact Wheel Compact Wheel > --- UTILITY ---------- Large Storage Unit Improved Propulsion Shielding Medium Armor Plating > --- WEAPON ----------- High-powered Shotgun High-powered Shotgun High-powered Shotgun > --- INVENTORY -------- Improved Heat Sink Melee Analysis Suite EM Shotgun EM Shotgun [Rating: 19] Favorites ----------- Power Light Ion Engine Engine Light Ion Engine Propulsion Light Treads Treads Light Treads Wheel Compact Wheel Utility Large Storage Unit Device Improved Heat Sink Storage Large Storage Unit Processor Signal Interpreter Protection Medium Armor Plating Weapon High-powered Shotgun Energy Gun Improved Medium Laser Ballistic Gun High-powered Shotgun Launcher Rocket Launcher Impact Weapon Maul Build | -11 -10 -9 ------- Run | Scr Mat Mat Slots Evolved 2 | . . 2 Power . | . . . Propulsion . | . . . Utility 1 | . . 1 Weapon 1 | . . 1 Parts Attached 38 | 6 6 26 Power 4 | 1 1 2 Engine 4 | 1 1 2 Core . | . . . Reactor . | . . . Propulsion 8 | 2 1 5 Treads 6 | 2 1 3 Leg . | . . . Wheel 2 | . . 2 Hover . | . . . Flight . | . . . Utility 8 | 1 3 4 Device 1 | . 1 . Storage 2 | 1 1 . Processor 1 | . 1 . Hackware . | . . . Protection 4 | . . 4 Artifact . | . . . Weapon 18 | 2 1 15 Energy Gun 1 | . . 1 Energy Cannon . | . . . Ballistic Gun 10 | 2 . 8 Ballistic Cannon . | . . . Launcher 2 | . . 2 Special Weapon . | . . . Impact Weapon 5 | . 1 4 Slashing Weapon . | . . . Piercing Weapon . | . . . Special Melee Weapon . | . . . Unidentified Prototypes . | . . . Parts Lost 13 | . 2 11 Power 3 | . 1 2 Propulsion 3 | . . 3 Utility 1 | . . 1 Weapon 6 | . 1 5 Highest Loss Streak 5 | . 1 5 Average Slot Usage (%) 84 | . 94 80 Engine 6 | . 12 5 Treads 15 | . 28 10 Wheel 5 | . . 7 Storage 11 | . 14 11 Processor 8 | . 10 7 Protection 7 | . . 10 Ballistic Gun 14 | . 13 14 Launcher 1 | . . 2 Impact Weapon 11 | . 12 11 Naked Turns . | . . . Heaviest Build 37 | 11 23 37 Greatest Support 40 | 40 40 40 Greatest Overweight (x) 7 | . . 7 Average Overweight (x) . | . . . Largest Inventory Capacity 10 | 6 10 10 Average Capacity 9 | 5 8 10 Most Carried 6 | 2 4 6 Average Carried 2 | . 2 3 Final Capacity 10 | 6 10 10 Final Carried 4 | 1 2 4 Class Distribution -------------------- 73% | Mutant 26% | Tank Dominant Class ---------------- Mutant | -10/Materials Mutant | -9/Materials Resources | -11 -10 -9 ----------- Run | Scr Mat Mat Matter Collected 1055 | 146 185 724 Remotely . | . . . Salvage Created 1742 | . 315 1427 Parts 88 | . 20 68 Haulers Intercepted . | . . . Recyclers Shooed 3 | . . 3 Parts Field Recycled . | . . . Retrieved Matter . | . . . Parts Self-Destructed . | . . . Prevented . | . . . Kills | -11 -10 -9 ------- Run | Scr Mat Mat Combat Hostiles Destroyed 42 | . 8 34 Melee 12 | . 5 7 Guns 22 | . 1 21 AOE 2 | . . 2 Classes Destroyed 8 | . 3 5 Worker 5 | . . 5 Builder 2 | . 1 1 Recycler 5 | . . 5 Watcher 3 | . . 3 Swarmer 15 | . 2 13 Grunt 23 | . 6 17 Duelist 1 | . . 1 Sentry 3 | . . 3 Best Kill Streak 6 | . 2 6 Combat Bots Only 6 | . 2 6 Max Kills in Single Turn 2 | . 1 2 Gunslinging 1 | . . 1 Exploded 1 | . . 1 Melee 1 | . 1 1 Uniques/NPCs Destroyed . | . . . Combat | -11 -10 -9 -------- Run | Scr Mat Mat Damage Taken 2608 | . 679 1929 Core 558 | . 158 400 Absorbed by Shields . | . . . Core Remaining (%) 68 | 100 36 . Volleys Fired 62 | . 5 57 Largest 3 | . 2 3 Hottest 86 | . 40 86 Shots Fired 153 | . 7 146 Gun 148 | . 7 141 Cannon . | . . . Launcher 5 | . . 5 Special . | . . . Kinetic 138 | . 7 131 Thermal 10 | . . 10 Explosive 5 | . . 5 Electromagnetic . | . . . Robot Hit Streak 16 | . 5 16 Robot Miss Streak 8 | . 1 8 Penetration Max . | . . . Secondary Targets 6 | . . 6 Max Gunslinging Chain 1 | . . 1 Shots Hit Robots 219 | . 36 183 Core Hits 69 | . 10 59 Critical Hits 1 | . . 1 Critical Kills . | . . . Critical Parts Destroyed . | . . . Melee Attacks 122 | . 38 84 Impact 122 | . 38 84 Slashing . | . . . Piercing . | . . . Sneak Attacks 11 | . 2 9 Combat Hostiles . | . . . Follow-up Attacks 12 | . . 12 Damage Inflicted 4750 | . 645 4105 Guns 1682 | . 56 1626 Cannons . | . . . Explosions 268 | . . 268 Melee 2800 | . 589 2211 Ramming . | . . . Kinetic 1542 | . 56 1486 Thermal 140 | . . 140 Explosive 268 | . . 268 Electromagnetic . | . . . Impact 2800 | . 589 2211 Slashing . | . . . Piercing . | . . . Highest Corruption . | . . . Average Corruption . | . . . Corruption Purged . | . . . Overload Shots . | . . . Overflow Damage 452 | . 15 437 Projectiles . | . . . Explosions . | . . . Melee 452 | . 15 437 Knockbacks 11 | . 3 8 Impact 11 | . 3 8 Kinetic . | . . . Secondary . | . . . Self-Inflicted Damage 32 | . . 32 Shots 1 | . . 1 Rammed . | . . . Targets Rammed . | . . . Kicked . | . . . Crushed . | . . . Highest Temperature 107 | . 2 107 Average Temperature 26 | . 2 26 Received Heat Transfer 1065 | . 357 708 Siege Activations . | . . . Robots Corrupted . | . . . Combat Hostiles . | . . . Parts Fried 7 | . 2 5 Impact Corruptions 28 | . 5 23 Robots Melted . | . . . Combat Hostiles . | . . . Parts Melted 2 | . . 2 Heat Transferred 296 | . . 296 Parts Sabotaged . | . . . Parts Stolen . | . . . Parts Stripped . | . . . Power Chain Reactions . | . . . Missiles Intercepted . | . . . Alert | -11 -10 -9 ------- Run | Scr Mat Mat Peak Influence 447 | . 190 447 Average Influence 120 | . 59 147 Maximum Alert Level 2 | . . 2 Low Security (%) 79 | 100 100 70 Level 1 19 | . . 27 Level 2 1 | . . 2 Level 3 . | . . . Level 4 . | . . . Level 5 . | . . . High Security . | . . . Max Security . | . . . Squads Dispatched 6 | . 1 5 Investigation 4 | . 1 3 Extermination . | . . . Reinforcement 2 | . . 2 Assault . | . . . Garrison . | . . . Intercept . | . . . Construction Impeded . | . . . Haulers Reinforced . | . . . Stealth | -11 -10 -9 --------- Run | Scr Mat Mat Distress Signals 4 | . 2 2 Communications Jammed . | . . . Distress Signals . | . . . Times Spotted 85 | . 16 69 Peak Tracking Total 6 | . 4 6 Tactical Retreats 10 | . 1 9 Traps | -11 -10 -9 ------- Run | Scr Mat Mat Traps Triggered 5 | . 2 3 Indirectly . | . . . Trap Hack Attempts . | . . . Triggered . | . . . Disarmed 1 | . . 1 Reprogrammed . | . . . Reused . | . . . Traps Extracted . | . . . Installed . | . . . Triggered . | . . . Machines | -11 -10 -9 ---------- Run | Scr Mat Mat Machines Disabled 4 | . 1 3 Max in Single Turn 2 | . 1 2 Machines Sabotaged . | . . . Garrisons Compromised . | . . . Overloaded Fab Kills . | . . . Fab Network Shutdowns . | . . . Hacking | -11 -10 -9 --------- Run | Scr Mat Mat Machines Accessed 8 | . . 8 Terminals 4 | . . 4 Fabricators . | . . . Repair Stations 1 | . . 1 Recycling Units 1 | . . 1 Scanalyzers 2 | . . 2 Garrison Access . | . . . Total Hacks 29 | . . 29 Successful 21 | . . 21 Failed 8 | . . 8 Catastrophic . | . . . Database Lockouts . | . . . Manual 6 | . . 6 Terminals 14 | . . 14 Fabricators . | . . . Repair Stations 9 | . . 9 Recycling Units 1 | . . 1 Scanalyzers 5 | . . 5 Garrison Access . | . . . Terminal Hacks 7 | . . 7 Record 1 | . . 1 Branch Access Points 2 | . . 2 Disarm Traps 1 | . . 1 Investigation Status 1 | . . 1 Zone Layout 2 | . . 2 Fabricator Hacks . | . . . Repair Station Hacks 8 | . . 8 Scan Component 4 | . . 4 Repair 4 | . . 4 Recycling Unit Hacks 1 | . . 1 Report Inventory 1 | . . 1 Scanalyzer 5 | . . 5 Insert Component 3 | . . 3 Analyze 2 | . . 2 Garrison Access Hacks . | . . . Unauthorized Hacks . | . . . Terminals . | . . . Fabricators . | . . . Repair Stations . | . . . Recycling Units . | . . . Scanalyzers . | . . . Garrison Access . | . . . Data Cores Recovered . | . . . Used . | . . . Hacking Detections 5 | . . 5 Full Trace Events 4 | . . 4 Feedback Events . | . . . Feedback Blocked . | . . . Robot Schematics Acquired . | . . . Robots Built . | . . . Matter . | . . . Time . | . . . Total Robot Build Rating . | . . . Part Schematics Acquired 2 | . . 2 Parts Built . | . . . Matter . | . . . Time . | . . . Total Part Build Rating . | . . . Parts Repaired 4 | . . 4 Time 146 | . . 146 Parts Recycled . | . . . Recycled Matter . | . . . Retrieved Matter . | . . . Retrieved Components . | . . . Parts Scanalyzed 2 | . . 2 Part Schematics Acquired 2 | . . 2 Parts Damaged . | . . . Bothacking | -11 -10 -9 ------------ Run | Scr Mat Mat Used RIF Installer . | . . . Robots Hacked . | . . . Non-combat . | . . . Combat . | . . . Robot Hacks Applied . | . . . Relay Couplers Released . | . . . Robots Rewired . | . . . Allies Hacked . | . . . Hacks Repelled . | . . . Allies | -11 -10 -9 -------- Run | Scr Mat Mat Total Allies . | . . . Largest Group . | . . . Highest-Rated Group . | . . . Highest-Rated Ally . | . . . Total Orders . | . . . Ally Attacks . | . . . Total Damage . | . . . Kills . | . . . Allies Corrupted . | . . . Allies Melted . | . . . Intel | -11 -10 -9 ------- Run | Scr Mat Mat Robot Analysis Total . | . . . Derelict Logs Recovered . | . . . Drone Launches . | . . . Drone Recoveries . | . . . Exploration | -11 -10 -9 ------------- Run | Scr Mat Mat Turns Passed 2686 | 65 716 1905 Spaces Moved 1266 | 39 364 863 Core 9 | 8 . 1 Treads 912 | 31 364 517 Legs . | . . . Wheels 345 | . . 345 Hover . | . . . Flight . | . . . Fastest Speed 50 | 50 160 100 Average Speed 149 | 137 160 146 Slowest Speed 400 | 160 160 400 Overloaded Moves . | . . . Propulsion Burnouts . | . . . Robots Hopped . | . . . Cave-ins Triggered . | . . . Exploration Rate (%) 42 | 5 60 63 Regions Visited 2 Branch Regions . Pre-discovered Areas . | . . . Known Exits Taken 1 | . 1 . Unknown Exits Taken 1 | 1 . . Scrap Searched . | . . . Spaces Dug . | . . . Terrain Destroyed 66 | . . 66 Melee . | . . . Projectile . | . . . AOE 66 | . . 66 Actions | -11 -10 -9 --------- Run | Scr Mat Mat Total 1747 | 51 437 1259 Wait 215 | . 15 200 Move 1264 | 38 363 863 Hop . | . . . Pick Up 41 | 7 5 29 Fast Attach . | . . . Attach 37 | 6 5 26 Detach 10 | . 3 7 Swap 1 | . 1 . Drop 9 | . 2 7 Fire 62 | . 5 57 Melee 108 | . 38 70 Ram . | . . . Kick . | . . . Crush . | . . . Escape Stasis . | . . . Rewire . | . . . Trap . | . . . Miscellaneous . | . . . Route ------- -11/Scrapyard -10/Materials (discovered 3 exits: *Mat x2 / [*Min]) -9/Materials (discovered 4 exits: [*Mat] / *Min x2 / Sto) History --------- Turn | Location | Event 5 | -11/Scrapyard | Discovered new exit (range 15) 66 | -11/Scrapyard | Entered Materials 314 | -10/Materials | Build established: Mutant 442 | -10/Materials | Discovered new exit (range 13) 679 | -10/Materials | Discovered new exit (range 14) 712 | -10/Materials | Core integrity fell below 50% 756 | -10/Materials | Discovered new exit (range 8) 781 | -10/Materials | Identified exit to Materials 782 | -10/Materials | Entered another Materials area 782 | -9/Materials | Evolved 2 slots: Utility x1, Weapon x1 1471 | -9/Materials | Discovered new exit (range 17) 1471 | -9/Materials | Identified exit to Mines 1471 | -9/Materials | Identified exit to Storage 1676 | -9/Materials | Core integrity fell below 50% 1738 | -9/Materials | Lost 5 parts (1n4w) 1912 | -9/Materials | Discovered new exit (range 5) 2105 | -9/Materials | Build established: Tank 2186 | -9/Materials | Core integrity fell below 20% 2535 | -9/Materials | Repaired Med. Armor Plating 2581 | -9/Materials | Repaired Hpw. Shotgun 2621 | -9/Materials | Repaired Hpw. Shotgun 2661 | -9/Materials | Repaired Hpw. Shotgun 2687 | -9/Materials | Destroyed by L-31 Rogue with Katana Last Messages --------------- ETC: 38 02621_ Repair station completes Hpw. Shotgun repairs. 02621_ Acquired Hpw. Shotgun. 02623_ Connecting with Repair Station... >>Scan(Hpw. Shotgun) Scanning Hpw. Shotgun... Ready to Repair: Hpw. Shotgun Rating: 3 Time: 38 >>Repair Repairing Hpw. Shotgun... ETC: 38 02636_ R-06 Scavenger collects Imp. Heat Sink. 02641_ R-06 Scavenger collects Aluminum Leg. 02661_ Repair station completes Hpw. Shotgun repairs. 02661_ Acquired Hpw. Shotgun. 02664_ Acquired 11 matter. 02679_ G-34 Mercenary destroyed. 02684_ Hpw. Shotgun severed. Map ----- +----------------------------------------------------+ | ?????????????????????????####+###???# ^ ^ #?? | | ?????????????????????????# #???# #?? | | ?????????????????????????#! """ #???# #?? | | ?????????????????????????# """ #???# #?? | | ?????????????????????????+ """ ##### #?? | | ?????????????????????????# + #?? | | ?????????????????????????# #### #?? | | ?????????????????????????########### #?? | | ?????????????????????# ??# ## #?? | | ?????????????????????# ?# ] ## #?? | | ?????????????????????# # ## #?? | | ?????????????????????# + ## #?? | | ?????????????????????????# ] !!! ## #?? | | ?????????????????????????#"S !!! ## #?? | | ?????????????????????????#""" !!! + #?? | | ?????????????????????????# "" ##### #?? | | ?????????????????????????# #???? #?? | | ?????????????????????????########+#???? #?? | | ?????????????????????#??????????# ##### #?? | | ?????????????????????# ?????????# # #?? | | ?????????????????????# ?????????# #?? | | ?????????????????????# ?######## #?? | | ?????????????????????# ?# # "" #?? | | ?????????????????????# #! # "Y #?? | | ?????????????????????# # " " # "" #?? | | ?????????????????????# =[@ "R" # #?? | | ?????????????????????# %l# """ # #?? | | ?????????????????????# * # # #?? | | ?????????????????????# ?######## """ #?? | | ?????????????????????# ???????## %"""" #?? | | ?????????????????????# ????????## """" [#?? | | ?????????????????????# ??????? #?? | | ?????????????????????#??????? #?? | | ???????????????????????????? #?? | | ??????????????????????????? ########## ###?? | | ?????????????????????????? ?????????? #???? | | ???????????????????????? ????????????#???? | | ??????????????????????? ?????????????????? | | ??????????????????????? ??????????????????? | | ???????????????????????##???????????????????? | | ????????????????????????????????????????????? | | ????????????????????????????????????????????? | | ????????????????????????????????????????????? | | ????????????????????????????????????????????? | | ????????????????????????????????????????????? | | ????????????????????????????????????????????? | | ????????????????????????????????????????????? | | ????????????????????????????????????????????? | | | | | +----------------------------------------------------+ Best States ------------- Heat Dissipation 39 Energy Generation 10 Energy Capacity 125 Matter Stores 300 Matter Capacity 300 Sight Range 16 Terrain Scan Density 10 Armor Coverage 225 Resistance: KI 20 Resistance: TH 20 Resistance: EX 20 Resistance: EM 20 Resistance: I 20 Resistance: S 20 Resistance: P 20 Propulsion Shielding 66 Evasion (%) 40 Recoil Reduction 2 Item Schematics ----------------- Imp. Medium Laser | -9/Materials | Scanalyzed Maul | -9/Materials | Scanalyzed Robot Schematics ------------------ None Fabricated ------------ Nothing Alien Tech Used ----------------- None Achievements -------------- Safety First Challenges ------------ None Game ------ Seed FireBiomechanicalShielding Manual? 0 Play Time 00:35:14 Cumulative 13.2 hours Start 2019.11.17 @ 14:41:23 End 2019.11.17 @ 19:11:46 Sessions 1 Manual Loads 0 Difficulty Adventurer Special Mode None Game No. 13 Rogue 9 Adventurer 4 Explorer 0 Win Type - Total 0 Types 0/0/0/0/0/0/0 Lore% 5 Gallery% 13 Achievement% 17 Wizard Run 0 Options --------- ASCII 0 Keyboard 1 Movement Numpad Keybinds 0 Fullscreen 2 Font 18/X11 Map View 76x50 Tactical HUD 1 Map Filters NONE Filters NONE Steam 1 RUN: 0059aa2d-b317-4371-9458-301355ce6fd9